fUSD/lending_fUSD_20250206
["ID","MTS","AMOUNT","RATE_DAILY","PERIOD"]
[351953827,1738859476144,-1202.15,0.00019726,2]
[351953828,1738859476154,-2080.1,0.00019726,3]
[351953829,1738859476163,-1721.01,0.00019726,3]
[351953830,1738859476174,-2248.12,0.00019726,3]
[351953831,1738859476184,-500.0,0.00019726,3]
[351953832,1738859476194,-1481.87,0.00019726,3]
[351953833,1738859476204,-957.01,0.00019726,3]
[351953834,1738859476214,-1117.8,0.00019726,3]
[351953835,1738859476224,-2168.42,0.00019726,3]
[351953836,1738859476234,-1392.78,0.00019726,3]
[351953837,1738859476244,-150.0,0.00019726,2]
[351953838,1738859476253,-201.0,0.0001973,2]
[351953839,1738859476263,-204.0,0.0001973,2]
[351953840,1738859476272,-208.0,0.0001973,2]
[351953841,1738859476283,-205.0,0.0001973,2]
[351953842,1738859476293,-215.525361,0.0001974,7]
[351953843,1738859476303,-1000.0,0.00019743,2]
[351953844,1738859476312,-162.36,0.00019743,2]
[351953845,1738859476322,-200.0,0.00019751,2]
[351953846,1738859476333,-2651.0,0.00019753,3]
[351953847,1738859476471,-151.05458167,0.00019757,2]
[351953848,1738859476481,-3813.95818789,0.00019763,2]
[351953849,1738859476491,-1062.41592651,0.00019763,2]
[351953850,1738859476502,-150.0,0.00019771,2]
[351953851,1738859476513,-150.0,0.00019775,2]
[351953852,1738859476525,-500.71,0.00019778,2]
[351953853,1738859476534,-1400.0,0.0001978,2]
[351953854,1738859476544,-4300.0,0.0001978,2]
[351953855,1738859476555,-2651.0,0.00019781,3]
[351953856,1738859476565,-513.5142638,0.00019781,7]
[351953857,1738859476575,-27126.9949191,0.00019781,7]
[351953858,1738859476585,-13417.9397636,0.00019781,7]
[351953859,1738859476597,-12235.3856776,0.00019781,7]
[351953860,1738859476610,-6853.2760102,0.00019781,7]
[351953861,1738859476619,-295.03731476,0.00019781,5]
[351953862,1738859476629,-76740.36,0.0001979,30]
[351953863,1738859476639,-150.0,0.00019793,2]
[351953864,1738859476648,-150.0,0.00019793,2]
[351953865,1738859476658,-150.0,0.00019799,2]
[351953866,1738859476667,-1600.0,0.000198,7]
[351953867,1738859476677,-3400.0,0.000198,7]
[351953868,1738859476687,-2651.0,0.00019808,3]
[351953869,1738859476697,-150.0,0.00019809,2]
[351953870,1738859476706,-1538.0,0.00019811,2]
[351953871,1738859476716,-150.0,0.00019814,2]
[351953872,1738859476726,-150.0,0.00019815,2]
[351953873,1738859476736,-150.0,0.00019819,2]
[351953874,1738859476747,-20000.0,0.00019824,3]
[351953875,1738859476757,-261.94391207,0.00019826,2]
[351953876,1738859476767,-2670.98059717,0.00019836,3]
[351953877,1738859476777,-1430.4488926,0.00019849,2]
[351953878,1738859476787,-923.9682441,0.00019849,2]
[351953879,1738859476797,-607.7437571,0.00019849,2]
[351953880,1738859476806,-727.2476076,0.00019849,2]
[351953881,1738859476816,-2260.0564958,0.00019849,2]
[351953882,1738859476826,-186.0663541,0.00019849,2]
[351953883,1738859476835,-2809.8201273,0.00019849,2]
[351953884,1738859476847,-205.0,0.0001985,2]
[351953885,1738859476859,-150.0,0.00019853,2]
[351953886,1738859476869,-515.38,0.00019862,2]
[351953887,1738859476879,-300.0,0.00019862,2]
[351953888,1738859476889,-300.0,0.00019862,2]
[351953889,1738859476899,-300.0,0.00019862,2]
[351953890,1738859476909,-300.0,0.00019862,2]
[351953891,1738859476919,-300.0,0.00019862,2]
[351953892,1738859476929,-300.0,0.00019862,2]
[351953893,1738859476939,-13328.14704278,0.00019863,2]
[351953894,1738859476949,-153.282885,0.00019863,3]
[351953895,1738859476959,-152.409931,0.00019863,3]
[351953896,1738859476968,-508.9,0.00019863,3]
[351953897,1738859476978,-500.0,0.00019863,3]
[351953898,1738859476988,-500.0,0.00019863,3]
[351953899,1738859476997,-513.58,0.00019863,3]
[351953900,1738859477007,-544.1,0.00019863,3]
[351953901,1738859477016,-500.0,0.00019863,3]
[351953902,1738859477026,-602.48,0.00019863,3]
[351953903,1738859477036,-882.37,0.00019863,3]
[351953904,1738859477045,-500.0,0.00019863,3]
[351953905,1738859477055,-500.0,0.00019863,3]
[351953906,1738859477064,-500.0,0.00019863,3]
[351953907,1738859477074,-406.31007403,0.00019863,3]
[351953908,1738859477084,-500.0,0.00019863,3]
[351953909,1738859477094,-500.0,0.00019863,3]
[351953910,1738859477108,-500.0,0.00019863,3]
[351953911,1738859477117,-599.54,0.00019863,3]
[351953912,1738859477127,-500.0,0.00019863,3]
[351953913,1738859477137,-537.36,0.00019863,3]
[351953914,1738859477146,-500.0,0.00019863,3]
[351953915,1738859477157,-500.0,0.00019863,3]
[351953916,1738859477166,-562.99,0.00019863,3]
[351953917,1738859477176,-300.0,0.00019863,3]
[351953918,1738859477186,-500.0,0.00019863,3]
[351953919,1738859477196,-500.0,0.00019863,3]
[351953920,1738859477206,-500.0,0.00019863,3]
[351953921,1738859477215,-1322.08,0.00019863,3]
[351953922,1738859477225,-513.23654344,0.00019863,3]
[351953923,1738859477235,-500.0,0.00019863,3]
[351953924,1738859477244,-500.0,0.00019863,3]
[351953925,1738859477254,-500.0,0.00019863,3]
[351953926,1738859477264,-645.2119426,0.00019863,3]
[351953927,1738859477273,-500.0,0.00019863,3]
[351953928,1738859477283,-500.0,0.00019863,3]
[351953929,1738859477294,-500.0,0.00019863,3]
[351953930,1738859477306,-500.0,0.00019863,3]
[351953931,1738859477316,-627.69,0.00019863,3]
[351953932,1738859477325,-500.0,0.00019863,3]
[351953933,1738859477335,-500.0,0.00019863,3]
[351953934,1738859477346,-500.0,0.00019863,3]
[351953935,1738859477362,-500.0,0.00019863,3]
[351953936,1738859477372,-939.79,0.00019863,3]
[351953937,1738859477382,-500.0,0.00019863,3]
[351953938,1738859477392,-500.0,0.00019863,3]
[351953939,1738859477402,-1087.67,0.00019863,3]
[351953940,1738859477420,-500.0,0.00019863,3]
[351953941,1738859477436,-500.0,0.00019863,3]
[351953942,1738859477455,-500.0,0.00019863,3]
[351953943,1738859477475,-500.0,0.00019863,3]
[351953944,1738859477491,-598.26,0.00019863,3]
[351953945,1738859477718,-500.0,0.00019863,3]
[351953946,1738859477738,-500.0,0.00019863,3]
[351953947,1738859477757,-500.0,0.00019863,3]
[351953948,1738859477777,-500.0,0.00019863,3]
[351953949,1738859477796,-500.0,0.00019863,3]
[351953950,1738859477814,-500.0,0.00019863,3]
[351953951,1738859477829,-151.0,0.00019863,2]
[351953952,1738859477852,-743.16,0.00019863,3]
[351953953,1738859477866,-1053.34,0.00019863,3]
[351953954,1738859477885,-151.0,0.00019863,2]
[351953955,1738859477900,-500.0,0.00019863,3]
[351953956,1738859477916,-500.0,0.00019863,3]
[351953957,1738859477931,-500.0,0.00019863,3]
[351953958,1738859477948,-500.0,0.00019863,3]
[351953959,1738859477965,-644.09,0.00019863,3]
[351953960,1738859477981,-500.0,0.00019863,3]
[351953961,1738859477998,-500.0,0.00019863,3]
[351953962,1738859478014,-154.076378,0.00019863,2]
[351953963,1738859478031,-953.16,0.00019863,3]
[351953964,1738859478048,-500.0,0.00019863,3]
[351953965,1738859478065,-154.076378,0.00019863,2]
[351953966,1738859478082,-500.0,0.00019863,3]
[351953967,1738859478102,-1101.73,0.00019863,3]
[351953968,1738859478119,-500.0,0.00019863,3]
[351953969,1738859478135,-670.07,0.00019863,3]
[351953970,1738859478151,-401.37593527,0.00019863,3]
[351953971,1738859478168,-500.0,0.00019863,3]
[351953972,1738859478184,-500.0,0.00019863,3]
[351953973,1738859478198,-517.59,0.00019863,3]
[351953974,1738859478214,-500.0,0.00019863,3]
[351953975,1738859478230,-500.0,0.00019863,3]
[351953976,1738859478245,-500.0,0.00019863,3]
[351953977,1738859478261,-500.0,0.00019863,3]
[351953978,1738859478276,-500.0,0.00019863,3]
[351953979,1738859478296,-666.67,0.00019863,3]
[351953980,1738859478311,-500.0,0.00019863,3]
[351953981,1738859478326,-989.31,0.00019863,3]
[351953982,1738859478342,-500.0,0.00019863,3]
[351953983,1738859478361,-500.0,0.00019863,3]
[351953984,1738859478377,-640.9,0.00019863,3]
[351953985,1738859478392,-500.0,0.00019863,3]
[351953986,1738859478407,-500.0,0.00019863,3]
[351953987,1738859478423,-1149.63,0.00019863,3]
[351953988,1738859478438,-500.0,0.00019863,3]
[351953989,1738859478454,-588.64,0.00019863,3]
[351953990,1738859478470,-500.0,0.00019863,3]
[351953991,1738859478486,-500.0,0.00019863,3]
[351953992,1738859478503,-500.0,0.00019863,3]
[351953993,1738859478523,-912.68,0.00019863,3]
[351953994,1738859478538,-500.0,0.00019863,3]
[351953995,1738859478554,-500.0,0.00019863,3]
[351953996,1738859478573,-500.0,0.00019863,3]
[351953997,1738859478589,-500.0,0.00019863,3]
[351953998,1738859478611,-500.0,0.00019863,3]
[351953999,1738859478629,-500.0,0.00019863,3]
[351954000,1738859478645,-500.0,0.00019863,3]
[351954001,1738859478663,-1738.07,0.00019863,3]
[351954002,1738859478680,-716.89,0.00019863,3]
[351954003,1738859478695,-500.0,0.00019863,3]
[351954004,1738859478710,-593.9,0.00019863,3]
[351954005,1738859478727,-928.58,0.00019863,3]
[351954006,1738859478744,-536.69,0.00019863,3]
[351954007,1738859478761,-500.0,0.00019863,3]
[351954008,1738859478777,-500.0,0.00019863,3]
[351954009,1738859478792,-500.0,0.00019863,3]
[351954010,1738859478809,-781.7,0.00019863,3]
[351954011,1738859478827,-500.0,0.00019863,3]
[351954012,1738859478843,-500.0,0.00019863,3]
[351954013,1738859478863,-872.94,0.00019863,3]
[351954014,1738859478880,-500.0,0.00019863,3]
[351954015,1738859478896,-500.0,0.00019863,3]
[351954016,1738859478913,-1180.42,0.00019863,3]
[351954017,1738859478930,-500.0,0.00019863,3]
[351954018,1738859478947,-1583.72,0.00019863,3]
[351954019,1738859478963,-626.37,0.00019863,3]
[351954020,1738859478980,-500.0,0.00019863,3]
[351954021,1738859478995,-500.0,0.00019863,3]
[351954022,1738859479012,-1095.92,0.00019863,3]
[351954023,1738859479029,-1245.43,0.00019863,3]
[351954024,1738859479048,-1731.07,0.00019863,3]
[351954025,1738859479067,-500.0,0.00019863,3]
[351954026,1738859479085,-618.11,0.00019863,3]
[351954027,1738859479107,-1071.66,0.00019863,3]
[351954028,1738859479123,-500.0,0.00019863,3]
[351954029,1738859479140,-500.0,0.00019863,3]
[351954030,1738859479157,-500.0,0.00019863,3]
[351954031,1738859479169,-571.79,0.00019863,3]
[351954032,1738859479179,-500.0,0.00019863,3]
[351954033,1738859479190,-500.0,0.00019863,3]
[351954034,1738859479443,-500.0,0.00019863,3]
[351954035,1738859479486,-567.18,0.00019863,3]
[351954036,1738859479499,-501.0,0.00019863,3]
[351954037,1738859479512,-500.0,0.00019863,3]
[351954038,1738859479525,-1485.63,0.00019863,3]
[351954039,1738859479539,-1131.09,0.00019863,3]
[351954040,1738859479551,-725.72,0.00019863,3]
[351954041,1738859479562,-820.08,0.00019863,3]
[351954042,1738859479572,-744.33,0.00019863,3]
[351954043,1738859479582,-1200.0,0.00019863,5]
[351954044,1738859479593,-1038.55,0.00019863,3]
[351954045,1738859479607,-997.71,0.00019863,3]
[351954046,1738859479623,-500.0,0.00019863,3]
[351954047,1738859479634,-500.0,0.00019863,3]
[351954048,1738859479649,-500.0,0.00019863,3]
[351954049,1738859479660,-500.0,0.00019863,3]
[351954050,1738859479670,-920.08,0.00019863,3]
[351954051,1738859479680,-500.0,0.00019863,3]
[351954052,1738859479690,-546.8,0.00019863,3]
[351954053,1738859479700,-802.1,0.00019863,3]
[351954054,1738859479710,-829.39,0.00019863,3]
[351954055,1738859479720,-1062.66,0.00019863,3]
[351954056,1738859479730,-500.0,0.00019863,3]
[351954057,1738859479740,-500.0,0.00019863,3]
[351954058,1738859479750,-500.0,0.00019863,3]
[351954059,1738859479759,-781.71,0.00019863,3]
[351954060,1738859479769,-733.94,0.00019863,3]
[351954061,1738859479778,-500.0,0.00019863,3]
[351954062,1738859479788,-977.61,0.00019863,3]
[351954063,1738859479798,-921.15,0.00019863,3]
[351954064,1738859479808,-1215.45,0.00019863,3]
[351954065,1738859479818,-694.69,0.00019863,3]
[351954066,1738859479829,-500.0,0.00019863,3]
[351954067,1738859479839,-500.0,0.00019863,3]
[351954068,1738859479849,-914.14,0.00019863,3]
[351954069,1738859479862,-500.0,0.00019863,3]
[351954070,1738859479872,-500.0,0.00019863,3]
[351954071,1738859479882,-500.0,0.00019863,3]
[351954072,1738859479892,-861.82,0.00019863,3]
[351954073,1738859479902,-500.0,0.00019863,3]
[351954074,1738859479912,-500.0,0.00019863,3]
[351954075,1738859479922,-500.0,0.00019863,3]
[351954076,1738859479932,-835.12,0.00019863,3]
[351954077,1738859479942,-500.0,0.00019863,3]
[351954078,1738859479952,-664.56,0.00019863,3]
[351954079,1738859479962,-500.0,0.00019863,3]
[351954080,1738859479972,-627.63,0.00019863,3]
[351954081,1738859479982,-500.0,0.00019863,3]
[351954082,1738859479991,-500.0,0.00019863,3]
[351954083,1738859480002,-636.89,0.00019863,3]
[351954084,1738859480013,-500.0,0.00019863,3]
[351954085,1738859480023,-746.71,0.00019863,3]
[351954086,1738859480033,-1881.95,0.00019863,3]
[351954087,1738859480045,-500.0,0.00019863,3]
[351954088,1738859480059,-500.0,0.00019863,3]
[351954089,1738859480070,-728.45,0.00019863,3]
[351954090,1738859480080,-3100.99,0.00019863,3]
[351954091,1738859480091,-500.0,0.00019863,3]
[351954092,1738859480101,-500.0,0.00019863,3]
[351954093,1738859480113,-1266.32,0.00019863,3]
[351954094,1738859480122,-501.42,0.00019863,3]
[351954095,1738859480132,-815.33,0.00019863,3]
[351954096,1738859480142,-976.76,0.00019863,3]
[351954097,1738859480153,-612.55,0.00019863,3]
[351954098,1738859480163,-1251.86,0.00019863,3]
[351954099,1738859480173,-805.52,0.00019863,3]
[351954100,1738859480182,-500.0,0.00019863,3]
[351954101,1738859480192,-1527.02,0.00019863,3]
[351954102,1738859480201,-500.0,0.00019863,3]
[351954103,1738859480211,-500.0,0.00019863,3]
[351954104,1738859480221,-1214.58,0.00019863,3]
[351954105,1738859480230,-500.0,0.00019863,3]
[351954106,1738859480239,-725.08,0.00019863,3]
[351954107,1738859480249,-758.66,0.00019863,3]
[351954108,1738859480258,-939.65,0.00019863,3]
[351954109,1738859480268,-633.87,0.00019863,3]
[351954110,1738859480277,-500.0,0.00019863,3]
[351954111,1738859480287,-528.24,0.00019863,3]
[351954112,1738859480296,-704.31,0.00019863,3]
[351954113,1738859480305,-1362.1,0.00019863,3]
[351954114,1738859480315,-500.0,0.00019863,3]
[351954115,1738859480324,-601.9,0.00019863,3]
[351954116,1738859480333,-961.89,0.00019863,3]
[351954117,1738859480343,-1055.11,0.00019863,3]
[351954118,1738859480352,-1033.09,0.00019863,3]
[351954119,1738859480364,-500.0,0.00019863,3]
[351954120,1738859480373,-896.21,0.00019863,3]
[351954121,1738859480383,-500.0,0.00019863,3]
[351954122,1738859480392,-848.6,0.00019863,3]
[351954123,1738859480402,-957.85,0.00019863,3]
[351954124,1738859480412,-500.0,0.00019863,3]
[351954125,1738859480422,-1133.7,0.00019863,3]
[351954126,1738859480432,-500.0,0.00019863,3]
[351954127,1738859480442,-500.0,0.00019863,3]
[351954128,1738859480452,-500.0,0.00019863,3]
[351954129,1738859480462,-655.65,0.00019863,3]
[351954130,1738859480472,-1198.99,0.00019863,3]
[351954131,1738859480481,-500.0,0.00019863,3]
[351954132,1738859480491,-1095.89,0.00019863,3]
[351954133,1738859480502,-733.0,0.00019863,3]
[351954134,1738859480515,-500.0,0.00019863,3]
[351954135,1738859480525,-880.56,0.00019863,3]
[351954136,1738859480535,-568.21,0.00019863,3]
[351954137,1738859480546,-500.0,0.00019863,3]
[351954138,1738859480556,-669.52,0.00019863,3]
[351954139,1738859480565,-500.0,0.00019863,3]
[351954140,1738859480575,-1271.47,0.00019863,3]
[351954141,1738859480586,-500.0,0.00019863,3]
[351954142,1738859480596,-621.18,0.00019863,3]
[351954143,1738859480607,-500.0,0.00019863,3]
[351954144,1738859480616,-500.0,0.00019863,3]
[351954145,1738859480626,-500.0,0.00019863,3]
[351954146,1738859480636,-216.11936811,0.00019863,3]
[351954147,1738859480645,-500.0,0.00019863,3]
[351954148,1738859480655,-500.0,0.00019863,3]
[351954149,1738859480664,-562.43,0.00019863,3]
[351954150,1738859480674,-1161.95,0.00019863,3]
[351954151,1738859480683,-1428.32,0.00019863,3]
[351954152,1738859480692,-786.81,0.00019863,3]
[351954153,1738859480702,-1157.3,0.00019863,3]
[351954154,1738859480711,-813.39,0.00019863,3]
[351954155,1738859480722,-888.81,0.00019863,3]
[351954156,1738859480732,-500.0,0.00019863,3]
[351954157,1738859480742,-500.0,0.00019863,3]
[351954158,1738859480752,-629.32,0.00019863,3]
[351954159,1738859480762,-500.0,0.00019863,3]
[351954160,1738859480772,-500.0,0.00019863,3]
[351954161,1738859480781,-776.83,0.00019863,3]
[351954162,1738859480791,-1126.26,0.00019863,3]
[351954163,1738859480801,-895.6,0.00019863,3]
[351954164,1738859480811,-665.98,0.00019863,3]
[351954165,1738859480821,-500.0,0.00019863,3]
[351954166,1738859480831,-443.38249155,0.00019863,3]
[351954167,1738859480842,-547.66,0.00019863,3]
[351954168,1738859480852,-500.0,0.00019863,3]
[351954169,1738859480863,-1396.45,0.00019863,3]
[351954170,1738859480872,-983.22,0.00019863,3]
[351954171,1738859480881,-704.72,0.00019863,3]
[351954172,1738859480891,-620.79,0.00019863,3]
[351954173,1738859480902,-500.0,0.00019863,3]
[351954174,1738859480912,-1850.4,0.00019863,2]
[351954175,1738859480921,-676.27,0.00019863,3]
[351954176,1738859480931,-500.0,0.00019863,3]
[351954177,1738859480941,-1488.93,0.00019863,3]
[351954178,1738859480949,-1095.19,0.00019863,3]
[351954179,1738859480959,-816.62,0.00019863,3]
[351954180,1738859480969,-500.0,0.00019863,3]
[351954181,1738859480978,-1483.16,0.00019863,3]
[351954182,1738859480988,-875.74,0.00019863,3]
[351954183,1738859480998,-1421.56,0.00019863,3]
[351954184,1738859481008,-1025.41,0.00019863,3]
[351954185,1738859481018,-1334.05,0.00019863,3]
[351954186,1738859481028,-974.43,0.00019863,3]
[351954187,1738859481038,-1490.28,0.00019863,3]
[351954188,1738859481048,-684.19,0.00019863,3]
[351954189,1738859481058,-500.0,0.00019863,3]
[351954190,1738859481068,-537.91690818,0.00019863,3]
[351954191,1738859481078,-500.0,0.00019863,3]
[351954192,1738859481088,-3022.85,0.00019863,3]
[351954193,1738859481098,-581.98,0.00019863,3]
[351954194,1738859481110,-1090.5,0.00019863,3]
[351954195,1738859481120,-1515.87,0.00019863,3]
[351954196,1738859481130,-500.0,0.00019863,3]
[351954197,1738859481140,-1234.05,0.00019863,3]
[351954198,1738859481150,-1764.95,0.00019863,3]
[351954199,1738859481160,-668.56,0.00019863,3]
[351954200,1738859481170,-816.76,0.00019863,3]
[351954201,1738859481180,-964.86,0.00019863,3]
[351954202,1738859481190,-978.7,0.00019863,3]
[351954203,1738859481199,-1674.88,0.00019863,3]
[351954204,1738859481208,-1374.73,0.00019863,3]
[351954205,1738859481218,-500.0,0.00019863,3]
[351954206,1738859481228,-808.77,0.00019863,3]
[351954207,1738859481237,-2484.78,0.00019863,3]
[351954208,1738859481247,-690.31,0.00019863,3]
[351954209,1738859481257,-1252.47,0.00019863,3]
[351954210,1738859481267,-1520.16,0.00019863,3]
[351954211,1738859481277,-676.95,0.00019863,3]
[351954212,1738859481287,-574.55,0.00019863,3]
[351954213,1738859481297,-508.56,0.00019863,3]
[351954214,1738859481306,-1654.65,0.00019863,3]
[351954215,1738859481316,-1889.68,0.00019863,3]
[351954216,1738859481326,-500.0,0.00019863,3]
[351954217,1738859481336,-1938.72,0.00019863,3]
[351954218,1738859481346,-500.0,0.00019863,3]
[351954219,1738859481358,-1436.62,0.00019863,3]
[351954220,1738859481368,-932.56,0.00019863,3]
[351954221,1738859481378,-500.0,0.00019863,3]
[351954222,1738859481387,-2075.99,0.00019863,3]
[351954223,1738859481398,-544.05,0.00019863,3]
[351954224,1738859481407,-890.11,0.00019863,3]
[351954225,1738859481417,-563.32,0.00019863,3]
[351954226,1738859481427,-500.0,0.00019863,3]
[351954227,1738859481436,-812.99,0.00019863,3]
[351954228,1738859481446,-1298.3,0.00019863,3]
[351954229,1738859481455,-500.0,0.00019863,3]
[351954230,1738859481466,-1206.59,0.00019863,3]
[351954231,1738859481475,-500.0,0.00019863,3]
[351954232,1738859481486,-500.0,0.00019863,3]
[351954233,1738859481495,-782.47,0.00019863,3]
[351954234,1738859481507,-2159.33,0.00019863,3]
[351954235,1738859481518,-1257.05,0.00019863,3]
[351954236,1738859481527,-1474.21,0.00019863,3]
[351954237,1738859481536,-1385.34,0.00019863,3]
[351954238,1738859481547,-1048.46,0.00019863,3]
[351954239,1738859481557,-681.94,0.00019863,3]
[351954240,1738859481567,-723.68,0.00019863,3]
[351954241,1738859481577,-805.81,0.00019863,3]
[351954242,1738859481587,-500.0,0.00019863,3]
[351954243,1738859481600,-500.0,0.00019863,3]
[351954244,1738859481614,-2189.95,0.00019863,3]
[351954245,1738859481624,-1118.0,0.00019863,3]
[351954246,1738859481634,-500.0,0.00019863,3]
[351954247,1738859481643,-761.44,0.00019863,3]
[351954248,1738859481653,-2281.39,0.00019863,3]
[351954249,1738859481663,-794.79,0.00019863,3]
[351954250,1738859481673,-1933.42,0.00019863,3]
[351954251,1738859481683,-1564.18,0.00019863,3]
[351954252,1738859481693,-1740.16,0.00019863,3]
[351954253,1738859481703,-1608.25,0.00019863,3]
[351954254,1738859481712,-595.7,0.00019863,3]
[351954255,1738859481723,-500.0,0.00019863,3]
[351954256,1738859481733,-500.0,0.00019863,3]
[351954257,1738859481743,-500.0,0.00019863,3]
[351954258,1738859481753,-2013.32,0.00019863,3]
[351954259,1738859481763,-1838.73,0.00019863,3]
[351954260,1738859481773,-814.17,0.00019863,3]
[351954261,1738859481784,-1594.58,0.00019863,3]
[351954262,1738859481793,-1250.99,0.00019863,3]
[351954263,1738859481803,-1472.26,0.00019863,3]
[351954264,1738859481813,-504.52,0.00019863,3]
[351954265,1738859481822,-500.0,0.00019863,3]
[351954266,1738859481833,-2036.39,0.00019863,3]
[351954267,1738859481843,-1082.34,0.00019863,3]
[351954268,1738859481856,-1794.21,0.00019863,3]
[351954269,1738859481866,-2212.48,0.00019863,3]
[351954270,1738859481875,-1000.05,0.00019863,3]
[351954271,1738859481884,-500.0,0.00019863,3]
[351954272,1738859481894,-1982.27,0.00019863,3]
[351954273,1738859481905,-547.36,0.00019863,3]
[351954274,1738859481915,-500.0,0.00019863,3]
[351954275,1738859481926,-2169.81,0.00019863,3]
[351954276,1738859481936,-3676.92,0.00019863,3]
[351954277,1738859481946,-1418.01,0.00019863,3]
[351954278,1738859481956,-1987.59,0.00019863,3]
[351954279,1738859481967,-3759.67,0.00019863,3]
[351954280,1738859481977,-1209.77,0.00019863,3]
[351954281,1738859481986,-1325.12,0.00019863,3]
[351954282,1738859481996,-1003.89,0.00019863,3]
[351954283,1738859482006,-1867.22,0.00019863,3]
[351954284,1738859482017,-1707.3,0.00019863,3]
[351954285,1738859482026,-737.66,0.00019863,3]
[351954286,1738859482036,-1714.32,0.00019863,3]
[351954287,1738859482045,-2211.47,0.00019863,3]
[351954288,1738859482055,-2383.64,0.00019863,3]
[351954289,1738859482066,-3867.71,0.00019863,3]
[351954290,1738859482075,-500.0,0.00019863,3]
[351954291,1738859482086,-910.29,0.00019863,3]
[351954292,1738859482095,-2979.92,0.00019863,3]
[351954293,1738859482107,-1813.13,0.00019863,3]
[351954294,1738859482117,-1520.95,0.00019863,3]
[351954295,1738859482126,-500.0,0.00019863,3]
[351954296,1738859482136,-1070.88,0.00019863,3]
[351954297,1738859482146,-944.96,0.00019863,3]
[351954298,1738859482156,-2341.93,0.00019863,3]
[351954299,1738859482166,-500.0,0.00019863,3]
[351954300,1738859482176,-1001.29,0.00019863,3]
[351954301,1738859482186,-500.0,0.00019863,3]
[351954302,1738859482196,-7025.56,0.00019863,3]
[351954303,1738859482206,-1580.19,0.00019863,3]
[351954304,1738859482216,-3800.02,0.00019863,3]
[351954305,1738859482226,-500.0,0.00019863,3]
[351954306,1738859482236,-557.56,0.00019863,3]
[351954307,1738859482246,-2114.38,0.00019863,3]
[351954308,1738859482255,-537.35,0.00019863,3]
[351954309,1738859482265,-1278.48,0.00019863,3]
[351954310,1738859482275,-3151.03,0.00019863,3]
[351954311,1738859482284,-2047.65,0.00019863,3]
[351954312,1738859482293,-500.0,0.00019863,3]
[351954313,1738859482303,-1608.0,0.00019863,3]
[351954314,1738859482313,-500.0,0.00019863,3]
[351954315,1738859482323,-910.08,0.00019863,3]
[351954316,1738859482333,-2786.69,0.00019863,3]
[351954317,1738859482343,-3611.73,0.00019863,3]
[351954318,1738859482353,-2127.85,0.00019863,3]
[351954319,1738859482365,-310.50942272,0.00019863,3]
[351954320,1738859482376,-1812.48,0.00019863,3]
[351954321,1738859482386,-3376.65,0.00019863,3]
[351954322,1738859482396,-2087.88,0.00019863,3]
[351954323,1738859482406,-3136.7,0.00019863,3]
[351954324,1738859482416,-584.99,0.00019863,3]
[351954325,1738859482426,-2643.85,0.00019863,3]
[351954326,1738859482436,-1531.86,0.00019863,3]